bitfinex/quotes_SOLUSD_20250326
["timestamp","ask_amount","ask_price","bid_price","bid_amount"]
[1742955920646,12.16993361,143.31,143.27,6.06]
[1742955921848,12.16993361,143.31,143.27,6.9796]
[1742955927258,12.16983361,143.3,143.27,6.9796]
[1742955927569,12.16983361,143.3,143.26,6.06]
[1742955927858,12.16983361,143.28,143.25,0.03]
[1742955928055,12.16983361,143.28,143.25,7.0106]
[1742955929145,12.16983361,143.28,143.25,0.03]
[1742955930242,12.16983361,143.29,143.25,0.03]
[1742955931052,12.16983361,143.28,143.25,0.03]
[1742955939362,12.16983361,143.26,143.25,0.03]
[1742955940271,12.16983361,143.27,143.25,0.03]
[1742955941655,12.16983361,143.26,143.25,0.03]
[1742955943482,12.16983361,143.27,143.25,0.03]
[1742955946374,20.0,143.26,143.25,0.03]
[1742955949571,32.16983361,143.26,143.25,0.03]
[1742955952995,39.15013361,143.26,143.25,0.03]
[1742955953173,59.93532875,143.26,143.25,0.03]
[1742955954167,21.5669,143.26,143.25,0.03]
[1742955954481,32.16983361,143.26,143.25,0.03]
[1742955956900,39.15013361,143.26,143.25,0.03]
[1742955957093,58.08410561,143.26,143.25,0.03]
[1742955957297,1.6167,143.25,143.23,0.03]
[1742955957597,12.16983361,143.24,143.23,0.03]
[1742955957897,19.15103361,143.24,143.23,0.03]
[1742955958605,44.34980561,143.24,143.22,0.03]
[1742955958781,31.10380561,143.23,143.22,0.03]
[1742955959894,38.08550561,143.23,143.22,0.03]
[1742955960202,12.16983361,143.22,143.21,2.2879709]
[1742955960903,20.0,143.19,143.18,0.03]
[1742955961206,80.84916805,143.19,143.18,0.03]
[1742955961404,32.16983361,143.19,143.18,0.03]
[1742955961779,39.15353361,143.19,143.18,0.03]
[1742955962802,18.933972,143.18,143.16,0.03]
[1742955962979,13.2467,143.23,143.16,12.19983361]
[1742955963187,12.16983361,143.23,143.17,12.16983361]
[1742955963391,12.16983361,143.22,143.17,12.16983361]
[1742955963691,12.16983361,143.23,143.17,12.16983361]
[1742955963896,12.16983361,143.23,143.18,6.9842]
[1742955964280,32.16983361,143.22,143.18,6.9842]
[1742955964684,12.16983361,143.21,143.17,6.9845]
[1742955964981,32.16983361,143.22,143.17,6.9845]
[1742955965199,20.0,143.21,143.17,6.9845]
[1742955965382,12.16983361,143.22,143.17,19.15433361]
[1742955965701,12.16983361,143.22,143.17,6.9845]
[1742955966200,12.16983361,143.19,143.16,0.03]
[1742955966404,32.16983361,143.2,143.16,7.0151]
[1742955968008,32.16983361,143.2,143.16,0.03]
[1742955968301,32.16983361,143.2,143.15,6.5156]
[1742955970810,32.16983361,143.19,143.15,6.5156]
[1742955972212,12.16983361,143.18,143.14,6.9861]
[1742955972506,12.16983361,143.19,143.14,6.9861]
[1742955974002,12.16983361,143.18,143.14,6.9861]
[1742955975182,12.16983361,143.18,143.13,84.44241311]
[1742955976083,12.16983361,143.18,143.13,96.61224672]
[1742955977507,12.16983361,143.18,143.13,19.15633361]
[1742955977987,12.16983361,143.19,143.13,19.15633361]
[1742955978489,12.16983361,143.18,143.13,19.15633361]
[1742955978687,12.16983361,143.18,143.13,19.18633361]
[1742955979817,12.16983361,143.18,143.13,7.0165]
[1742955979989,12.16983361,143.18,143.13,19.18633361]
[1742955981100,19.15413361,143.18,143.13,7.0165]
[1742955982725,12.16983361,143.18,143.13,7.0165]
[1742955982934,6.9838,143.19,143.13,19.18633361]
[1742955983234,81.0,143.22,143.15,12.16983361]
[1742955983408,0.34732314,143.23,143.15,12.16983361]
[1742955983409,32.16983361,143.21,143.15,12.16983361]
[1742955983732,12.16983361,143.2,143.16,6.06]
[1742955984501,12.16983361,143.2,143.17,6.9847]
[1742955984709,32.16983361,143.21,143.17,6.9847]
[1742955985229,0.063,143.23,143.18,12.16983361]
[1742955985527,12.23283361,143.23,143.18,12.16983361]
[1742955985728,0.063,143.23,143.18,12.16983361]
[1742955986210,0.063,143.23,143.19,12.16983361]
[1742955986700,0.063,143.23,143.2,6.9832]
[1742955988828,0.063,143.23,143.19,6.9837]
[1742955989006,0.063,143.23,143.19,19.15353361]
[1742955995435,0.063,143.23,143.18,19.15403361]
[1742955996030,12.16983361,143.22,143.18,6.9842]
[1742955997022,0.063,143.23,143.17,84.44051311]
[1742955997023,12.16983361,143.21,143.17,84.44051311]
[1742955998227,12.16983361,143.21,143.17,77.45591311]
[1742955998419,12.16983361,143.2,143.17,77.45591311]
[1742955998632,12.16983361,143.2,143.16,13.0451]
[1742955999218,12.16983361,143.21,143.16,25.21493361]
[1742956000649,7.0449,143.23,143.16,25.21493361]
[1742956000818,7.0449,143.23,143.18,12.16983361]
[1742956000819,0.063,143.23,143.18,12.16983361]
[1742956001934,0.063,143.23,143.19,6.9837]
[1742956002108,12.23283361,143.23,143.19,6.9837]
[1742956003649,0.063,143.23,143.19,19.15353361]
[1742956003940,0.063,143.23,143.19,24.443]
[1742956004116,12.23283361,143.23,143.19,24.443]
[1742956004314,0.063,143.23,143.19,24.443]
[1742956008255,0.063,143.23,143.19,36.61283361]
[1742956009544,12.16983361,143.24,143.19,36.61283361]
[1742956013148,12.16983361,143.22,143.19,6.9837]
[1742956013348,12.16983361,143.22,143.15,0.03]
[1742956013349,12.16983361,143.2,143.15,77.48591311]
[1742956013532,12.16983361,143.18,143.15,84.47141311]
[1742956013729,12.16983361,143.17,143.15,77.48591311]
[1742956014740,12.16983361,143.16,143.15,77.48591311]
[1742956014943,12.16983361,143.16,143.15,0.03]
[1742956015254,12.16983361,143.17,143.15,0.03]
[1742956016254,12.16983361,143.18,143.15,0.03]
[1742956017460,12.16983361,143.19,143.15,0.03]
[1742956021835,12.16983361,143.18,143.15,0.03]
[1742956022639,12.16983361,143.19,143.15,0.03]
[1742956031864,12.16983361,143.16,143.15,0.03]
[1742956033672,19.15493361,143.16,143.15,0.03]
[1742956034952,19.43925675,143.16,143.15,0.03]
[1742956036744,7.26942314,143.16,143.15,0.03]
[1742956037062,19.43925675,143.16,143.15,0.03]
[1742956038271,38.37322875,143.16,143.15,0.03]
[1742956039259,38.933972,143.14,143.13,0.03]
[1742956039450,51.10380561,143.14,143.13,0.03]
[1742956039652,32.16983361,143.14,143.12,0.03]
[1742956039847,133.45298247,143.13,143.1,0.03]
[1742956040069,133.45298247,143.13,143.02,1.6233]
[1742956040070,18.933972,143.1,143.03,6.9913]
[1742956040274,12.16983361,143.06,143.03,6.9913]
[1742956040471,12.16983361,143.06,143.02,8.6151]
[1742956041568,12.16983361,143.06,143.02,7.0718]
[1742956043079,12.16983361,143.07,143.02,7.0718]
[1742956043277,6.0317,143.12,143.03,18.22983361]
[1742956043458,12.16983361,143.09,143.04,12.16983361]
[1742956043661,12.16983361,143.1,143.04,12.16983361]
[1742956044288,12.16983361,143.09,143.04,12.16983361]
[1742956044886,12.16983361,143.09,143.05,6.9905]
[1742956047899,12.16983361,143.1,143.05,36.63673361]
[1742956049958,32.16983361,143.11,143.05,36.63673361]
[1742956050494,12.16983361,143.1,143.05,36.63673361]
[1742956050658,12.16983361,143.1,143.05,24.4969]
[1742956052166,12.16983361,143.09,143.05,24.4969]
[1742956052465,12.16983361,143.08,143.05,7.0205]
[1742956052668,12.16983361,143.07,143.05,7.0205]
[1742956053382,12.16983361,143.07,143.05,0.03]
[1742956056067,12.16983361,143.06,143.05,0.03]
[1742956056876,12.16983361,143.07,143.05,0.03]
[1742956061802,12.16983361,143.06,143.05,0.03]
[1742956068294,12.16983361,143.07,143.05,0.03]
[1742956069294,12.16983361,143.06,143.05,0.03]
[1742956072218,12.16983361,143.07,143.05,0.03]
[1742956072582,12.16983361,143.08,143.05,0.03]
[1742956073086,12.16983361,143.09,143.05,0.03]
[1742956074782,12.16983361,143.07,143.05,0.03]
[1742956076608,12.16983361,143.08,143.05,0.03]
[1742956077594,12.16983361,143.09,143.05,0.03]
[1742956078107,32.23283361,143.1,143.05,12.19983361]
[1742956078292,32.23283361,143.1,143.05,18.25983361]
[1742956078492,0.063,143.1,143.05,18.25983361]
[1742956078689,12.23283361,143.1,143.05,18.25983361]
[1742956079295,0.063,143.1,143.05,18.25983361]
[1742956079905,0.063,143.1,143.06,24.4651]
[1742956080107,0.063,143.1,143.06,36.63493361]
[1742956081406,0.063,143.1,143.07,12.16983361]
[1742956081826,0.063,143.1,143.09,12.16983361]
[1742956082000,0.063,143.1,143.09,19.15843361]
[1742956082524,0.063,143.1,143.09,6.9886]
[1742956082810,0.063,143.1,143.07,6.9891]
[1742956083005,0.063,143.1,143.08,12.16983361]
[1742956084029,0.063,143.1,143.09,6.9886]
[1742956089430,12.23283361,143.1,143.07,6.9895]
[1742956089592,12.16983361,143.09,143.07,6.9895]
[1742956091318,12.16983361,143.09,143.05,7.0205]
[1742956093604,12.16983361,143.09,143.05,0.03]
[1742956097420,12.23283361,143.1,143.05,0.03]
[1742956097622,12.23283361,143.1,143.05,12.19983361]
[1742956097920,12.23283361,143.1,143.05,0.03]
[1742956098122,0.063,143.1,143.05,12.19983361]
[1742956098816,0.063,143.1,143.06,12.16983361]
[1742956099120,0.063,143.1,143.07,12.16983361]
[1742956099823,0.063,143.1,143.08,6.989]
[1742956101817,12.23283361,143.1,143.08,6.989]
[1742956101996,12.23283361,143.1,143.06,24.4644]
[1742956103023,0.063,143.1,143.06,24.4644]
[1742956103319,0.063,143.1,143.07,12.16983361]
[1742956103517,0.063,143.1,143.08,12.16983361]
[1742956105099,0.063,143.1,143.09,6.9886]
[1742956105823,0.063,143.1,143.08,6.9889]
[1742956107221,12.23283361,143.1,143.08,6.9889]
[1742956108004,0.063,143.1,143.08,6.9889]
[1742956109015,12.23283361,143.1,143.06,6.9897]
[1742956110110,12.16983361,143.09,143.06,6.9897]
[1742956111128,12.16983361,143.09,143.05,7.0205]
[1742956111329,0.063,143.1,143.05,7.0205]
[1742956111330,12.23283361,143.1,143.05,36.66673361]
[1742956111627,0.063,143.1,143.05,36.66673361]
[1742956113128,0.063,143.1,143.05,24.4969]
[1742956113327,12.16983361,143.09,143.05,24.4969]
[1742956113507,12.23283361,143.1,143.05,24.4969]
[1742956115029,12.23283361,143.1,143.05,36.66673361]
[1742956115232,0.063,143.1,143.05,36.66673361]
[1742956116929,0.063,143.1,143.06,12.16983361]
[1742956118108,0.063,143.1,143.05,36.66673361]
[1742956119529,0.063,143.1,143.06,12.16983361]
[1742956121035,0.063,143.1,143.07,24.4634]
[1742956123539,0.063,143.1,143.07,36.63323361]
[1742956124425,0.063,143.1,143.07,24.4634]
[1742956124622,0.063,143.1,143.07,6.9895]
[1742956125333,0.063,143.1,143.07,19.15933361]
[1742956126236,0.063,143.1,143.07,36.63323361]
[1742956134550,0.063,143.1,143.07,24.4634]
[1742956136289,0.063,143.1,143.07,36.63323361]
[1742956138146,0.063,143.1,143.09,12.16983361]
[1742956138356,0.063,143.1,143.09,19.15843361]
[1742956139053,0.063,143.1,143.09,25.19843361]
[1742956141458,0.063,143.1,143.09,13.0286]
[1742956142049,0.063,143.1,143.09,25.19843361]
[1742956144665,0.063,143.1,143.09,13.0286]
[1742956146352,0.063,143.1,143.09,13.0586]
[1742956150748,0.063,143.1,143.09,7.0186]
[1742956152074,0.063,143.1,143.09,0.03]
[1742956152970,12.23283361,143.1,143.09,0.03]
[1742956160058,0.063,143.1,143.09,0.03]
[1742956165264,12.23283361,143.1,143.09,0.03]
[1742956167098,0.063,143.1,143.09,0.03]
[1742956167387,1.5031,143.17,143.1,18.933972]
[1742956167686,18.33573361,143.19,143.13,12.16983361]
[1742956168275,12.16983361,143.18,143.13,12.16983361]
[1742956168665,18.33573361,143.19,143.13,12.16983361]
[1742956168993,12.16983361,143.19,143.13,12.16983361]
[1742956169193,12.16983361,143.19,143.14,6.9861]
[1742956169485,12.16983361,143.18,143.14,6.9861]
[1742956172073,12.16983361,143.19,143.14,24.4515]
[1742956173178,12.16983361,143.18,143.14,24.4515]
[1742956174589,12.16983361,143.17,143.14,6.9861]
[1742956174777,12.16983361,143.16,143.12,6.9871]
[1742956178384,12.16983361,143.15,143.11,24.4555]
[1742956182593,12.16983361,143.16,143.11,36.62533361]
[1742956187909,12.16983361,143.16,143.11,24.4555]
[1742956190980,12.16983361,143.16,143.11,36.62533361]
[1742956191310,0.063,143.18,143.11,36.62533361]
[1742956191612,12.16983361,143.16,143.11,36.62533361]
[1742956193586,12.16983361,143.17,143.11,36.62533361]
[1742956194376,12.16983361,143.17,143.12,12.16983361]
[1742956195513,12.16983361,143.13,143.1,0.03]
[1742956195694,12.16983361,143.11,143.1,0.03]
[1742956197888,19.15743361,143.11,143.1,0.03]
[1742956200601,18.933972,143.1,143.06,0.03]
[1742956200798,12.16983361,143.07,143.06,0.03]
[1742956206191,27.14183361,143.07,143.05,0.03]
[1742956206391,12.16983361,143.06,143.05,0.03]
[1742956207308,31.10380561,143.06,143.05,0.03]
[1742956207986,38.09380561,143.06,143.05,0.03]
[1742956209415,119.37812875,143.06,143.05,0.03]
[1742956210013,112.38812875,143.06,143.05,0.03]
[1742956210926,93.45415675,143.06,143.05,0.03]
[1742956211595,54.30881492,143.1,143.05,0.03]
[1742956211596,12.17238416,143.23,143.22,19.14964886]
[1742956211802,258.40760285,143.36,143.35,0.5]
[1742956212002,67.12505241,143.36,143.35,86.88746319]
[1742956212223,266.07302989,143.38,143.37,0.28432314]
[1742956212404,202.20772193,143.38,143.36,6.32]
[1742956212605,214.37755554,143.38,143.32,12.16983361]
[1742956212827,12.16983361,143.37,143.32,6.32]
[1742956213000,19.00970995,143.34,143.29,6.9788]
[1742956213197,202.20772193,143.38,143.25,17.4516]
[1742956213198,19.00970995,143.31,143.25,19.00970995]
[1742956213399,19.00970995,143.28,143.23,6.9813]
[1742956214107,207.9283,143.37,143.28,18.933972]
[1742956214314,25.47800995,143.37,143.31,19.00970995]
[1742956214998,36.88093704,143.37,143.31,30.41263704]
[1742956215305,30.41263704,143.36,143.3,30.41263704]
[1742956216120,30.41263704,143.36,143.31,14.36050065]
[1742956216497,36.88093704,143.37,143.31,44.77313769]
[1742956216699,30.41263704,143.36,143.31,14.36050065]
[1742956216893,30.41263704,143.35,143.31,14.36050065]
[1742956217096,30.41263704,143.35,143.3,30.41263704]
[1742956217097,30.41263704,143.35,143.32,14.36050065]
[1742956217394,30.41263704,143.36,143.32,14.36050065]
[1742956217810,30.41263704,143.36,143.33,14.36050065]
[1742956218003,30.41263704,143.36,143.34,6.32]
[1742956218595,30.41263704,143.36,143.35,34.98172372]
[1742956219322,30.41263704,143.36,143.35,68.48955857]
[1742956219518,30.47563704,143.37,143.35,68.48955857]
[1742956219697,0.063,143.37,143.35,68.48955857]
[1742956219898,0.063,143.37,143.35,145.94547168]
[1742956220102,30.41263704,143.41,143.35,176.35810872]
[1742956220329,30.41263704,143.4,143.36,14.36050065]
[1742956221907,30.41263704,143.4,143.35,96.60324731]
[1742956222225,30.41263704,143.36,143.35,96.60324731]
[1742956222441,30.41263704,143.37,143.35,96.60324731]
[1742956223335,30.41263704,143.38,143.35,96.60324731]
[1742956224434,30.41263704,143.36,143.35,19.1473342]
[1742956226750,30.41263704,143.37,143.35,19.1473342]
[1742956227332,30.41263704,143.36,143.35,19.1473342]
[1742956228438,30.41263704,143.36,143.33,77.45591311]
[1742956229331,30.41263704,143.37,143.33,77.45591311]
[1742956230235,30.41263704,143.38,143.33,77.45591311]
[1742956232049,6.9716,143.44,143.33,86.32769439]
[1742956232250,43.91503704,143.45,143.39,30.41263704]
[1742956232455,0.063,143.45,143.41,30.41263704]
[1742956232943,30.41263704,143.44,143.4,6.28]
[1742956233134,30.47563704,143.45,143.4,6.28]
[1742956233648,30.47563704,143.45,143.4,36.69263704]
[1742956234145,30.47563704,143.45,143.4,6.28]
[1742956234348,0.063,143.45,143.41,31.80683074]
[1742956235523,0.063,143.45,143.41,1.3941937]
[1742956235738,0.063,143.45,143.41,78.85010681]
[1742956236117,30.47563704,143.45,143.41,85.82290681]
[1742956236314,0.063,143.45,143.41,85.82290681]
[1742956236939,0.063,143.45,143.41,78.85010681]
[1742956237648,0.063,143.45,143.41,85.82290681]
[1742956238957,0.063,143.45,143.41,116.23554385]
[1742956239132,0.063,143.45,143.41,85.82290681]
[1742956239338,0.063,143.45,143.41,116.23554385]
[1742956240059,0.063,143.45,143.42,6.26]
[1742956240247,0.063,143.45,143.43,6.26]
[1742956240560,0.063,143.45,143.43,114.12855015]
[1742956240767,0.063,143.45,143.43,115.52238745]
[1742956241745,0.063,143.45,143.44,30.41263704]
[1742956242071,0.063,143.45,143.44,107.86855015]
[1742956242360,0.063,143.45,143.44,114.84005015]
[1742956246262,0.063,143.45,143.44,84.42741311]
[1742956246651,0.063,143.45,143.44,77.45591311]
[1742956247466,0.063,143.45,143.44,83.69591311]
[1742956247854,0.063,143.45,143.44,90.66741311]
[1742956253943,0.063,143.45,143.42,77.45591311]
[1742956254149,0.063,143.45,143.4,84.42921311]
[1742956254150,18.98118484,143.44,143.4,84.42921311]
[1742956254443,18.98118484,143.43,143.4,77.45591311]
[1742956254860,18.98118484,143.43,143.4,84.42921311]
[1742956255369,18.98118484,143.43,143.41,0.03]
[1742956256159,18.98118484,143.42,143.41,5.18408695]
[1742956257340,0.063,143.45,143.42,0.56864628]
[1742956257543,0.063,143.45,143.42,77.45591311]
[1742956257765,0.063,143.45,143.42,84.42821311]
[1742956257961,19.04418484,143.45,143.42,77.45591311]
[1742956258167,18.98118484,143.44,143.41,22.18653626]
[1742956258952,18.98118484,143.44,143.43,10.78244931]
[1742956260555,25.95268484,143.44,143.43,15.93653626]
[1742956261860,25.95268484,143.44,143.43,10.78244931]
[1742956262061,32.14218484,143.44,143.43,10.78244931]
[1742956262771,32.14218484,143.44,143.41,0.03]
[1742956262972,18.98118484,143.42,143.41,0.03]
[1742956267756,27.87860798,143.42,143.33,0.03]
[1742956267955,18.98118484,143.41,143.34,25.52550798]
[1742956268165,18.98118484,143.42,143.35,18.98118484]
[1742956268684,18.98118484,143.41,143.34,25.52550798]
[1742956269683,18.98118484,143.4,143.34,6.26]
[1742956269884,18.98118484,143.39,143.34,6.26]
[1742956270049,18.98118484,143.39,143.34,83.71591311]
[1742956270363,18.98118484,143.4,143.34,90.69221311]
[1742956271260,18.98118484,143.39,143.34,90.69221311]
[1742956274168,0.063,143.44,143.38,38.98118484]
[1742956274371,0.063,143.44,143.39,25.22118484]
[1742956274890,19.04418484,143.44,143.39,25.22118484]
[1742956275475,19.04418484,143.44,143.4,6.9735]
[1742956278790,0.063,143.44,143.4,24.4072]
[1742956279000,0.063,143.44,143.4,44.78266608]
[1742956279870,0.063,143.44,143.4,25.80148124]
[1742956280185,19.04418484,143.44,143.4,25.80148124]
[1742956280775,18.98118484,143.43,143.4,6.9735]
[1742956282594,0.063,143.44,143.4,8.3678609]
[1742956282788,0.063,143.44,143.4,104.80495885]
[1742956283193,0.063,143.44,143.4,103.25747401]
[1742956284784,0.063,143.44,143.41,38.19947998]
[1742956284982,0.063,143.44,143.42,1.39399157]
[1742956285794,0.063,143.44,143.43,6.972]
[1742956288501,0.063,143.44,143.43,84.42791311]
[1742956289471,0.063,143.44,143.43,124.02137158]
[1742956290683,0.063,143.44,143.43,125.52617158]
[1742956293607,0.063,143.45,143.44,96.61120825]
[1742956293778,0.063,143.45,143.44,128.76389309]
[1742956294980,0.063,143.45,143.44,130.15756497]
[1742956295177,0.063,143.45,143.44,84.36441311]
[1742956295383,0.063,143.45,143.44,83.57291311]
[1742956295617,0.063,143.45,143.44,90.54441311]
[1742956296109,0.063,143.45,143.44,83.57291311]
[1742956296986,19.04418484,143.45,143.44,83.57291311]
[1742956297190,19.04418484,143.45,143.44,77.39291311]
[1742956300296,19.04418484,143.45,143.42,84.36531311]
[1742956300602,0.063,143.45,143.42,84.36531311]
[1742956302200,0.063,143.45,143.43,38.19947998]
[1742956302997,0.063,143.45,143.43,19.21829514]
[1742956303403,0.063,143.45,143.43,96.61120825]
[1742956303780,0.063,143.45,143.44,6.9715]
[1742956303993,0.063,143.45,143.44,84.36441311]
[1742956305998,0.063,143.45,143.44,123.95774411]
[1742956307003,0.0001,143.45,143.44,123.95774411]
[1742956307892,0.0001,143.45,143.44,84.36441311]
[1742956310725,0.0001,143.45,143.44,90.52441311]
[1742956311519,0.0001,143.45,143.44,84.36441311]
[1742956311703,18.98128484,143.45,143.44,77.39291311]
[1742956312091,18.98128484,143.45,143.43,6.16]
[1742956312290,18.98118484,143.44,143.43,6.16]
[1742956313032,18.98118484,143.44,143.43,13.1319]
[1742956315422,18.98118484,143.44,143.41,0.03]
[1742956315593,18.98118484,143.42,143.41,0.03]
[1742956316131,20.53318484,143.42,143.41,0.03]
[1742956317701,27.50568484,143.42,143.41,0.03]
[1742956320510,20.53318484,143.42,143.41,0.03]
[1742956322717,6.1208,143.45,143.41,0.03]
[1742956322913,18.98118484,143.43,143.41,0.03]
[1742956323218,18.98118484,143.42,143.41,0.03]
[1742956326113,18.98118484,143.43,143.41,0.03]
[1742956326313,18.98118484,143.42,143.41,0.03]
[1742956331321,20.0,143.44,143.41,0.03]
[1742956331623,18.98118484,143.42,143.41,0.03]
[1742956333028,12.15604917,143.42,143.41,0.03]
[1742956339940,19.12854917,143.42,143.41,0.03]
[1742956340314,25.39044917,143.42,143.35,83.53291311]
[1742956340514,12.15604917,143.37,143.35,77.39291311]
[1742956340723,12.15604917,143.37,143.34,0.03]
[1742956340724,12.15604917,143.36,143.34,0.03]
[1742956340932,12.15604917,143.35,143.34,0.03]
[1742956341521,19.13194917,143.35,143.34,0.03]
[1742956341745,25.39384917,143.35,143.34,0.03]
[1742956342624,25.39384917,143.35,143.33,0.03]
[1742956342940,19.13244917,143.34,143.33,0.03]
[1742956343115,20.0,143.32,143.31,0.03]
[1742956343320,32.15604917,143.32,143.31,0.03]
[1742956343648,32.15604917,143.32,143.26,0.03]
[1742956343822,12.15604917,143.27,143.26,0.03]
[1742956344842,19.04182306,143.27,143.26,0.03]
[1742956345046,26.02162306,143.27,143.26,0.03]
[1742956345230,19.04182306,143.27,143.26,0.03]
[1742956351319,18.79181043,143.33,143.26,6.19]
[1742956351320,19.04182306,143.3,143.26,6.19]
[1742956351643,19.04182306,143.32,143.26,102.62473617]
[1742956352129,19.04182306,143.31,143.27,6.9798]
[1742956352326,19.04182306,143.31,143.27,84.37271311]
[1742956352528,19.04182306,143.3,143.27,84.37271311]
[1742956352941,19.04182306,143.29,143.27,77.39291311]
[1742956353144,19.04182306,143.28,143.27,77.39291311]
[1742956358450,19.04182306,143.28,143.26,0.03]
[1742956358656,19.04182306,143.27,143.26,0.03]
[1742956359150,26.02162306,143.27,143.26,0.03]
[1742956360164,19.04182306,143.27,143.26,0.03]
[1742956361056,26.02162306,143.27,143.26,0.03]
[1742956361634,19.04182306,143.27,143.26,0.03]
[1742956362153,26.02162306,143.27,143.26,0.03]
[1742956363539,19.04182306,143.27,143.26,0.03]
[1742956363854,26.02162306,143.27,143.26,0.03]
[1742956364957,19.04182306,143.27,143.26,0.03]
[1742956365563,26.02162306,143.27,143.26,0.03]
[1742956368866,19.16598234,143.27,143.26,0.03]
[1742956373255,12.18618234,143.27,143.26,0.03]
[1742956375173,0.063,143.31,143.26,0.03]
[1742956375174,12.18618234,143.28,143.26,0.03]
[1742956376154,12.18618234,143.29,143.26,0.03]
[1742956376449,12.18618234,143.29,143.26,7.0103]
[1742956376670,12.24918234,143.31,143.26,7.0103]
[1742956377365,12.18618234,143.3,143.26,7.0103]
[1742956377770,12.18618234,143.29,143.26,7.0103]
[1742956377957,12.18618234,143.28,143.26,0.03]
[1742956378270,7.0409,143.31,143.26,0.03]
[1742956378271,12.18618234,143.29,143.26,0.03]
[1742956378866,12.18618234,143.28,143.26,6.15]
[1742956379969,12.18618234,143.27,143.26,6.15]
[1742956380573,12.18618234,143.28,143.26,7.0102]
[1742956380771,0.063,143.31,143.26,7.0102]
[1742956381067,12.18618234,143.29,143.26,7.0102]
[1742956381272,0.063,143.31,143.27,12.18618234]
[1742956381474,0.063,143.31,143.26,114.03999545]
[1742956381650,12.24918234,143.31,143.26,114.03999545]
[1742956381971,12.24918234,143.31,143.26,101.85381311]
[1742956382369,0.063,143.31,143.26,84.40311311]
[1742956382569,12.18618234,143.3,143.26,84.40311311]
[1742956383670,12.18618234,143.29,143.26,84.40311311]
[1742956387076,12.18618234,143.29,143.26,7.0102]
[1742956387262,7.0409,143.31,143.26,7.0102]
[1742956387263,12.18618234,143.27,143.26,0.03]
[1742956387664,12.18618234,143.28,143.26,0.03]
[1742956390967,19.16558234,143.28,143.26,0.03]
[1742956391185,12.18618234,143.27,143.26,0.03]
[1742956393880,19.16598234,143.27,143.26,0.03]
[1742956394168,12.18618234,143.27,143.26,0.03]
[1742956395089,19.16598234,143.27,143.26,0.03]
[1742956401277,37.95779277,143.27,143.26,0.03]
[1742956401483,12.18618234,143.26,143.25,0.03]
[1742956402094,7.5581,143.24,143.22,14.7055]
[1742956402299,20.0,143.21,143.18,0.03]
[1742956402606,12.18618234,143.19,143.18,0.03]
[1742956403308,19.16988234,143.19,143.18,0.03]
[1742956403480,67.9146117,143.19,143.18,0.03]
[1742956404490,67.9146117,143.19,143.12,0.03]
[1742956404709,12.18618234,143.14,143.12,0.03]
[1742956405084,12.18618234,143.13,143.12,0.03]
[1742956409510,6.3434,143.23,143.13,0.28432314]
[1742956409686,12.18618234,143.19,143.14,18.32618234]
[1742956409889,12.18618234,143.19,143.14,95.71909545]
[1742956410301,12.18618234,143.19,143.14,83.53291311]
[1742956410503,12.18618234,143.19,143.14,83.03291311]
[1742956410695,12.18618234,143.19,143.15,6.9856]
[1742956410885,19.05531946,143.18,143.15,6.9856]
[1742956411091,19.05531946,143.16,143.14,90.01891311]
[1742956412919,19.05531946,143.15,143.12,0.03]
[1742956413105,19.05531946,143.14,143.12,0.03]
[1742956413510,19.05531946,143.14,143.12,7.0171]
[1742956414625,19.05531946,143.14,143.12,0.03]
[1742956415919,19.05531946,143.13,143.12,0.03]
[1742956424320,26.04191946,143.13,143.12,0.03]
[1742956429126,18.79181043,143.12,143.11,0.03]
[1742956429302,19.05531946,143.12,143.11,0.03]
[1742956430833,26.04241946,143.12,143.11,0.03]
[1742956431018,19.20116563,143.12,143.11,0.03]
[1742956432527,25.39436563,143.12,143.11,0.03]
[1742956436417,18.40726563,143.12,143.11,0.03]
[1742956436635,12.21406563,143.12,143.11,0.03]